fUSD/lending_fUSD_20250519
["ID","MTS","AMOUNT","RATE_DAILY","PERIOD"]
[361608666,1747636245639,-400.0,0.00013698,2]
[361608667,1747636245648,-1087.76,0.00013698,2]
[361608668,1747636245658,-1647.34,0.00013698,2]
[361608669,1747636245667,-420.0,0.00013698,2]
[361608670,1747636245676,-971.15,0.00013698,2]
[361608671,1747636245686,-909.17,0.00013698,2]
[361608672,1747636245695,-420.0,0.00013698,2]
[361608673,1747636245705,-7281.19,0.00013698,2]
[361608674,1747636245714,-400.0,0.00013698,2]
[361608675,1747636245723,-500.0,0.00013698,2]
[361608676,1747636245732,-1745.17,0.00013698,2]
[361608677,1747636245741,-759.13,0.00013698,2]
[361608678,1747636245750,-598.45498487,0.00013698,2]
[361608679,1747636245759,-420.0,0.00013698,2]
[361608680,1747636245768,-420.0,0.00013698,2]
[361608681,1747636245778,-1260.98,0.00013698,2]
[361608682,1747636245788,-519.06,0.00013698,2]
[361608683,1747636245797,-1490.68,0.00013698,2]
[361608684,1747636245807,-10417.89,0.00013698,2]
[361608685,1747636245817,-400.0,0.00013698,2]
[361608686,1747636245826,-1107.37,0.00013698,2]
[361608687,1747636245836,-725.72,0.00013698,2]
[361608688,1747636245845,-2342.78,0.00013698,2]
[361608689,1747636245854,-420.0,0.00013698,2]
[361608690,1747636245863,-521.83,0.00013698,2]
[361608691,1747636245873,-420.0,0.00013698,2]
[361608692,1747636245882,-1339.91,0.00013698,2]
[361608693,1747636245891,-420.0,0.00013698,2]
[361608694,1747636245901,-725.82,0.00013698,2]
[361608695,1747636245911,-420.0,0.00013698,2]
[361608696,1747636245920,-609.15,0.00013698,2]
[361608697,1747636245929,-420.0,0.00013698,2]
[361608698,1747636245938,-1160.96,0.00013698,2]
[361608699,1747636245948,-426.68,0.00013698,2]
[361608700,1747636245958,-6685.82,0.00013698,2]
[361608701,1747636245967,-8027.59,0.00013698,2]
[361608702,1747636245978,-420.0,0.00013698,2]
[361608703,1747636245987,-420.0,0.00013698,2]
[361608704,1747636245996,-474.1,0.00013698,2]
[361608705,1747636246006,-3930.0,0.00013698,2]
[361608706,1747636246015,-560.55,0.00013698,2]
[361608707,1747636246024,-1130.6,0.00013698,2]
[361608708,1747636246033,-400.0,0.00013698,2]
[361608709,1747636246043,-1374.17,0.00013698,2]
[361608710,1747636246052,-400.0,0.00013698,2]
[361608711,1747636246062,-1712.46,0.00013698,2]
[361608712,1747636246071,-3776.79,0.00013698,2]
[361608713,1747636246080,-11633.33,0.00013698,2]
[361608714,1747636246089,-420.0,0.00013698,2]
[361608715,1747636246099,-912.86,0.00013698,2]
[361608716,1747636246107,-551.16,0.00013698,2]
[361608717,1747636246117,-2526.33,0.00013698,2]
[361608718,1747636246126,-420.0,0.00013698,2]
[361608719,1747636246136,-953.1,0.00013698,2]
[361608720,1747636246145,-3420.04,0.00013698,2]
[361608721,1747636246155,-420.0,0.00013698,2]
[361608722,1747636246163,-420.0,0.00013698,2]
[361608723,1747636246173,-910.38,0.00013698,2]
[361608724,1747636246182,-420.0,0.00013698,2]
[361608725,1747636246192,-1061.08,0.00013698,2]
[361608726,1747636246202,-576.07,0.00013698,2]
[361608727,1747636246212,-420.0,0.00013698,2]
[361608728,1747636246221,-1221.02,0.00013698,2]
[361608729,1747636246231,-752.26,0.00013698,2]
[361608730,1747636246241,-794.2,0.00013698,2]
[361608731,1747636246251,-1378.03,0.00013698,2]
[361608732,1747636246260,-400.0,0.00013698,2]
[361608733,1747636246270,-745.28,0.00013698,2]
[361608734,1747636246280,-1093.09,0.00013698,2]
[361608735,1747636246289,-528.62,0.00013698,2]
[361608736,1747636246298,-2636.94,0.00013698,2]
[361608737,1747636246308,-2301.65,0.00013698,2]
[361608738,1747636246318,-400.0,0.00013698,2]
[361608739,1747636246328,-420.0,0.00013698,2]
[361608740,1747636246337,-556.09,0.00013698,2]
[361608741,1747636246346,-400.0,0.00013698,2]
[361608742,1747636246355,-4137.57,0.00013698,2]
[361608743,1747636246377,-1232.16,0.00013698,2]
[361608744,1747636246389,-420.0,0.00013698,2]
[361608745,1747636246399,-1743.34,0.00013698,2]
[361608746,1747636246408,-355.05958738,0.00013698,2]
[361608747,1747636246417,-420.0,0.00013698,2]
[361608748,1747636246427,-420.0,0.00013698,2]
[361608749,1747636246437,-534.86,0.00013698,2]
[361608750,1747636246445,-974.03,0.00013698,2]
[361608751,1747636246455,-420.0,0.00013698,2]
[361608752,1747636246465,-420.0,0.00013698,2]
[361608753,1747636246474,-420.0,0.00013698,2]
[361608754,1747636246483,-700.23,0.00013698,2]
[361608755,1747636246493,-1061.72,0.00013698,2]
[361608756,1747636246502,-404.65890343,0.00013698,2]
[361608757,1747636246511,-978.39,0.00013698,2]
[361608758,1747636246522,-420.0,0.00013698,2]
[361608759,1747636246532,-615.83,0.00013698,2]
[361608760,1747636246542,-679.51,0.00013698,2]
[361608761,1747636246552,-420.0,0.00013698,2]
[361608762,1747636246561,-772.81,0.00013698,2]
[361608763,1747636246855,-38123.50629582,0.00013698,2]
[361608764,1747636247405,-5790.13912912,0.00013698,2]
[361608765,1747636247457,-4406.72446239,0.00013698,2]
[361608766,1747636247468,-1028.1522,0.00013698,2]
[361608767,1747636247480,-907.38014932,0.00013698,2]
[361608768,1747636247509,-287.07,0.00013698,2]
[361608769,1747636248144,-313.70316042,0.00013698,2]
[361608770,1747636248188,-383.30164025,0.00013698,2]
[361608771,1747636248200,-649.83334176,0.00013698,2]
[361608772,1747636248921,-32370.17636886,0.00013698,2]
[361608773,1747636248932,-1461.17325206,0.00013698,2]
[361608774,1747636248943,-627.04,0.00013698,2]
[361608775,1747636248952,-736.57,0.00013698,2]
[361608776,1747636248962,-741.92,0.00013698,2]
[361608777,1747636248971,-737.92,0.00013698,2]
[361608778,1747636248981,-1261.37,0.00013698,2]
[361608779,1747636248991,-1183.01,0.00013698,2]
[361608780,1747636249000,-776.26,0.00013698,2]
[361608781,1747636249010,-771.06,0.00013698,2]
[361608782,1747636249019,-1730.13,0.00013698,2]
[361608783,1747636249028,-457.04,0.00013698,2]
[361608784,1747636249038,-884.2292081,0.00013698,2]
[361608785,1747636249054,-2204.5407919,0.00013698,2]
[361608786,1747636249063,-420.0,0.00013698,2]
[361608787,1747636249073,-622.0,0.00013698,2]
[361608788,1747636249083,-2256.13,0.00013698,2]
[361608789,1747636249092,-3943.87,0.00013698,2]
[361608790,1747636249102,-6906.75,0.00013698,2]
[361608791,1747636249112,-572.91,0.00013698,2]
[361608792,1747636249121,-420.0,0.00013698,2]
[361608793,1747636249130,-420.0,0.00013698,2]
[361608794,1747636249139,-400.0,0.00013698,2]
[361608795,1747636249149,-1778.35,0.00013698,2]
[361608796,1747636249158,-1494.29,0.00013698,2]
[361608797,1747636249167,-1498.88,0.00013698,2]
[361608798,1747636249176,-420.0,0.00013698,2]
[361608799,1747636249185,-420.0,0.00013698,2]
[361608800,1747636249199,-422.01563641,0.00013698,2]
[361608801,1747636249209,-1035.67,0.00013698,2]
[361608802,1747636249218,-420.0,0.00013698,2]
[361608803,1747636249227,-704.28,0.00013698,2]
[361608804,1747636249237,-420.0,0.00013698,2]
[361608805,1747636249246,-805.33,0.00013698,2]
[361608806,1747636249256,-1000.0,0.00013698,2]
[361608807,1747636249265,-3028.12,0.00013698,2]
[361608808,1747636249274,-4317.73787206,0.00013698,2]
[361608809,1747636249554,-4333.86212794,0.00013698,2]
[361608810,1747636249563,-400.0,0.00013698,2]
[361608811,1747636249573,-931.46,0.00013698,2]
[361608812,1747636249582,-2493.85,0.00013698,2]
[361608813,1747636249591,-1872.11,0.00013698,2]
[361608814,1747636249601,-3479.97,0.00013698,2]
[361608815,1747636249613,-420.0,0.00013698,2]
[361608816,1747636249623,-779.67,0.00013698,2]
[361608817,1747636249632,-479.5,0.00013698,2]
[361608818,1747636249641,-1033.4,0.00013698,2]
[361608819,1747636249651,-16697.51,0.00013698,2]
[361608820,1747636249661,-156.759965,0.00013698,2]
[361608821,1747636249670,-1987.94,0.00013698,2]
[361608822,1747636249678,-420.0,0.00013698,2]
[361608823,1747636249690,-420.0,0.00013698,2]
[361608824,1747636249699,-575.7,0.00013698,2]
[361608825,1747636249708,-511.29,0.00013698,2]
[361608826,1747636249718,-420.0,0.00013698,2]
[361608827,1747636249728,-420.0,0.00013698,2]
[361608828,1747636249737,-1194.05,0.00013698,2]
[361608829,1747636249746,-1132.66,0.00013698,2]
[361608830,1747636249755,-2346.13,0.00013698,2]
[361608831,1747636249763,-302.47264962,0.00013698,2]
[361608832,1747636249773,-1018.67,0.00013698,2]
[361608833,1747636249782,-590.91,0.00013698,2]
[361608834,1747636249791,-500.0,0.00013698,2]
[361608835,1747636249800,-500.0,0.00013698,2]
[361608836,1747636249810,-2018.94,0.00013698,2]
[361608837,1747636249819,-420.0,0.00013698,2]
[361608838,1747636249829,-2147.76,0.00013698,2]
[361608839,1747636249838,-617.67,0.00013698,2]
[361608840,1747636249847,-420.0,0.00013698,2]
[361608841,1747636249856,-508.62421493,0.00013698,2]
[361608842,1747636249865,-3240.18,0.00013698,2]
[361608843,1747636249876,-537.07,0.00013698,2]
[361608844,1747636249887,-865.29,0.00013698,2]
[361608845,1747636249897,-3281.53,0.00013698,2]
[361608846,1747636249906,-166.113406,0.00013698,2]
[361608847,1747636249915,-531.57,0.00013698,2]
[361608848,1747636249924,-1611.14,0.00013698,2]
[361608849,1747636249932,-1417.45,0.00013698,2]
[361608850,1747636249942,-597.09,0.00013698,2]
[361608851,1747636249951,-452.55,0.00013698,2]
[361608852,1747636249960,-478.85019845,0.00013698,2]
[361608853,1747636249969,-512.71,0.00013698,2]
[361608854,1747636249978,-15431.8,0.00013698,2]
[361608855,1747636249987,-420.0,0.00013698,2]
[361608856,1747636249996,-7252.01186989,0.00013698,2]
[361608857,1747636250017,-3075.04813011,0.00013698,2]
[361608858,1747636250026,-2160.34,0.00013698,2]
[361608859,1747636250035,-250.15569558,0.00013698,2]
[361608860,1747636250044,-1137.78,0.00013698,2]
[361608861,1747636250054,-420.0,0.00013698,2]
[361608862,1747636250064,-772.29,0.00013698,2]
[361608863,1747636250073,-615.15,0.00013698,2]
[361608864,1747636250082,-420.0,0.00013698,2]
[361608865,1747636250091,-4309.22,0.00013698,2]
[361608866,1747636250100,-891.44,0.00013698,2]
[361608867,1747636250110,-1603.44,0.00013698,2]
[361608868,1747636250119,-1867.6,0.00013698,2]
[361608869,1747636250127,-2473.97,0.00013698,2]
[361608870,1747636250136,-556.01,0.00013698,2]
[361608871,1747636250146,-420.0,0.00013698,2]
[361608872,1747636250155,-420.0,0.00013698,2]
[361608873,1747636250165,-405.73005112,0.00013698,2]
[361608874,1747636250174,-420.0,0.00013698,2]
[361608875,1747636250183,-440.01,0.00013698,2]
[361608876,1747636250193,-420.0,0.00013698,2]
[361608877,1747636250202,-1355.57,0.00013698,2]
[361608878,1747636250212,-420.0,0.00013698,2]
[361608879,1747636250221,-1709.6,0.00013698,2]
[361608880,1747636250231,-420.0,0.00013698,2]
[361608881,1747636250241,-553.63,0.00013698,2]
[361608882,1747636250250,-638.66,0.00013698,2]
[361608883,1747636250259,-420.0,0.00013698,2]
[361608884,1747636250269,-420.0,0.00013698,2]
[361608885,1747636250278,-420.0,0.00013698,2]
[361608886,1747636250287,-1329.36,0.00013698,2]
[361608887,1747636250296,-420.0,0.00013698,2]
[361608888,1747636250305,-401.15766699,0.00013698,2]
[361608889,1747636250314,-1086.63,0.00013698,2]
[361608890,1747636250323,-150.366528,0.00013698,2]
[361608891,1747636250332,-697.97,0.00013698,2]
[361608892,1747636250341,-420.0,0.00013698,2]
[361608893,1747636250350,-930.87,0.00013698,2]
[361608894,1747636250360,-1029.14,0.00013698,2]
[361608895,1747636250371,-454.9,0.00013698,2]
[361608896,1747636250380,-2191.91,0.00013698,2]
[361608897,1747636250389,-420.0,0.00013698,2]
[361608898,1747636250400,-933.55,0.00013698,2]
[361608899,1747636250409,-922.48,0.00013698,2]
[361608900,1747636250419,-1181.2,0.00013698,2]
[361608901,1747636250428,-7715.04,0.00013698,2]
[361608902,1747636250437,-1951.29,0.00013698,2]
[361608903,1747636250447,-400.0,0.00013698,2]
[361608904,1747636250456,-420.0,0.00013698,2]
[361608905,1747636250465,-400.0,0.00013698,2]
[361608906,1747636250474,-420.0,0.00013698,2]
[361608907,1747636250483,-400.0,0.00013698,2]
[361608908,1747636250492,-400.0,0.00013698,2]
[361608909,1747636250501,-1209.91,0.00013698,2]
[361608910,1747636250510,-1014.14,0.00013698,2]
[361608911,1747636250520,-420.0,0.00013698,2]
[361608912,1747636250529,-6562.15,0.00013698,2]
[361608913,1747636250539,-404.20980846,0.00013698,2]
[361608914,1747636250548,-400.0,0.00013698,2]
[361608915,1747636250557,-420.0,0.00013698,2]
[361608916,1747636250566,-1236.66,0.00013698,2]
[361608917,1747636250575,-177.04922459,0.00013698,2]
[361608918,1747636250584,-428.02,0.00013698,2]
[361608919,1747636250594,-497.08,0.00013698,2]
[361608920,1747636250607,-1750.13,0.00013698,2]
[361608921,1747636250617,-420.0,0.00013698,2]
[361608922,1747636250628,-420.0,0.00013698,2]
[361608923,1747636250639,-805.92,0.00013698,2]
[361608924,1747636250648,-733.77,0.00013698,2]
[361608925,1747636250657,-400.0,0.00013698,2]
[361608926,1747636250666,-420.0,0.00013698,2]
[361608927,1747636250676,-400.0,0.00013698,2]
[361608928,1747636250687,-3519.93,0.00013698,2]
[361608929,1747636250697,-642.74,0.00013698,2]
[361608930,1747636250706,-420.0,0.00013698,2]
[361608931,1747636250716,-420.0,0.00013698,2]
[361608932,1747636250725,-438.6,0.00013698,2]
[361608933,1747636250735,-420.0,0.00013698,2]
[361608934,1747636250746,-2071.78,0.00013698,2]
[361608935,1747636250755,-450.55,0.00013698,2]
[361608936,1747636250766,-970.62,0.00013698,2]
[361608937,1747636250777,-627.05,0.00013698,2]
[361608938,1747636250788,-947.36,0.00013698,2]
[361608939,1747636250799,-466.19351188,0.00013698,2]
[361608940,1747636250810,-420.0,0.00013698,2]
[361608941,1747636250820,-420.0,0.00013698,2]
[361608942,1747636250830,-420.0,0.00013698,2]
[361608943,1747636250839,-420.0,0.00013698,2]
[361608944,1747636250850,-420.0,0.00013698,2]
[361608945,1747636250859,-400.0,0.00013698,2]
[361608946,1747636250869,-420.0,0.00013698,2]
[361608947,1747636250879,-420.0,0.00013698,2]
[361608948,1747636250889,-614.76,0.00013699,2]
[361608949,1747636250898,-21806.40994078,0.00013699,2]
[361608950,1747636250912,-413.69196566,0.00013699,2]
[361608951,1747636263160,12050.0,0.0002,30]
[361608952,1747636300204,564.44981157,0.00027,120]
[361608953,1747636468729,151.0723,0.0002,30]
[361608954,1747636468848,151.0723,0.0002,30]
[361608955,1747636858296,7645.78076816,0.00027397,120]
[361608956,1747637044903,664.41,0.00010668,2]
[361608957,1747637089732,649.81213244,0.00027397,120]
[361608958,1747637146490,204.0,0.0001117,2]
[361608959,1747637211120,-1340.73483576,0.00012565,2]
[361608960,1747637228064,209.03989827,0.00027397,120]
[361608961,1747637228143,-661.54575345,0.00012565,2]
[361608962,1747637295162,38463.376875,0.0002,30]
[361608963,1747637295465,312.53128,0.0001117,2]
[361608964,1747637355200,77642.3834193,0.0002,30]
[361608968,1747637384116,271.4,0.00027397,120]
[361608969,1747637423246,20803.0147295,0.0002,30]
[361608986,1747637432156,-247.82,0.00012466,2]
[361608987,1747637432166,-676.27,0.00012509,2]
[361608988,1747637432176,-100.7338,0.00012565,2]
[361608989,1747637432188,-1230.95561079,0.00012565,2]
[361608990,1747637432198,-1829.81,0.00012622,2]
[361608991,1747637432208,-1000.0,0.00012671,2]
[361608992,1747637432219,-1285.76,0.00012743,2]
[361608993,1747637432229,-1200.0,0.00012757,2]
[361608994,1747637432238,-1124.08,0.00012758,2]
[361608995,1747637432248,-489.07,0.0001276,2]
[361608996,1747637432258,-166.52,0.00012772,2]
[361608997,1747637432267,-300.0,0.00012931,2]
[361608998,1747637432277,-664.41,0.00012932,2]
[361608999,1747637432287,-200.0,0.00012971,2]
[361609000,1747637432298,-356.46,0.00013,2]
[361609001,1747637432307,-207.4,0.00013123,2]
[361609002,1747637432317,-250.0,0.00013387,2]
[361609003,1747637432326,-200.0,0.00013464,2]
[361609004,1747637432336,-170.07,0.000135,2]
[361609005,1747637432345,-170.07,0.000135,2]
[361609006,1747637432355,-1193.0,0.000135,2]
[361609007,1747637432365,-549.59690035,0.00013522,2]
[361609008,1747637432375,-3767.5888,0.00013522,2]
[361609009,1747637432385,-170.07,0.00013534,2]
[361609011,1747637432395,-3782.6713,0.00013591,2]
[361609012,1747637432404,-96.46738886,0.00013592,2]
[361609013,1747637432442,-131.73465534,0.00013592,2]
[361609014,1747637432451,-167.44296889,0.00013592,2]
[361609015,1747637432463,-4781.28139386,0.00013592,2]
[361609016,1747637432473,-865.68662936,0.00013592,2]
[361609017,1747637432482,-179.46663083,0.00013592,2]
[361609018,1747637432492,-162.89562547,0.00013592,2]
[361609019,1747637432502,-3026.67144479,0.00013598,2]
[361609020,1747637432511,-150.0,0.00013598,2]
[361609021,1747637432521,-2075.84322,0.00013598,2]
[361609022,1747637432543,-937.16121711,0.00013598,2]
[361609033,1747637438705,-73.50570604,0.00013598,2]
[361609037,1747637438738,-375.45294857,0.00013598,2]
[361609039,1747637438748,-500.0,0.00013599,2]
[361609041,1747637438758,-500.0,0.00013599,2]
[361609043,1747637438767,-500.0,0.00013599,2]
[361609045,1747637438777,-500.0,0.00013599,2]
[361609047,1747637438787,-500.0,0.00013599,2]
[361609049,1747637438796,-500.0,0.00013599,2]
[361609051,1747637438805,-500.0,0.00013599,2]
[361609053,1747637438816,-500.0,0.00013599,2]
[361609055,1747637438825,-500.0,0.00013599,2]
[361609057,1747637438834,-500.0,0.00013599,2]
[361609059,1747637438844,-500.0,0.00013599,2]
[361609060,1747637438853,-500.0,0.00013599,2]
[361609062,1747637438862,-500.0,0.00013599,2]
[361609065,1747637438873,-500.0,0.00013599,2]
[361609067,1747637438882,-500.0,0.00013599,2]
[361609069,1747637438891,-500.0,0.00013599,2]
[361609071,1747637438900,-500.0,0.00013599,2]
[361609073,1747637438910,-500.0,0.00013599,2]
[361609075,1747637438920,-500.0,0.00013599,2]
[361609077,1747637438931,-500.0,0.00013599,2]
[361609079,1747637438940,-500.0,0.00013599,2]
[361609081,1747637438949,-500.0,0.00013599,2]
[361609082,1747637438959,-500.0,0.00013599,2]
[361609084,1747637438968,-500.0,0.00013599,2]
[361609086,1747637438979,-500.0,0.00013599,2]
[361609088,1747637438989,-500.0,0.00013599,2]
[361609090,1747637438998,-500.0,0.00013599,2]
[361609092,1747637439008,-500.0,0.00013599,2]
[361609094,1747637439018,-500.0,0.00013599,2]
[361609095,1747637439027,-500.0,0.00013599,2]
[361609096,1747637439037,-500.0,0.00013599,2]
[361609097,1747637439047,-500.0,0.00013599,2]
[361609098,1747637439057,-500.0,0.00013599,2]
[361609099,1747637439066,-500.0,0.00013599,2]
[361609100,1747637439076,-500.0,0.00013599,2]
[361609101,1747637439086,-500.0,0.00013599,2]
[361609102,1747637439095,-500.0,0.00013599,2]
[361609103,1747637439105,-500.0,0.00013599,2]
[361609104,1747637439115,-500.0,0.00013599,2]
[361609105,1747637439125,-311.20001122,0.00013599,2]
[361609106,1747637439135,-500.0,0.00013599,2]
[361609107,1747637439144,-500.0,0.00013599,2]
[361609108,1747637439154,-500.0,0.00013599,2]
[361609109,1747637439163,-47402.41092403,0.000136,2]
[361609115,1747637439199,-20422.0,0.000136,2]
[361609118,1747637439210,-323.41606292,0.000136,2]
[361609121,1747637439224,-1114.525,0.000136,2]
[361609137,1747637439355,-435.53024477,0.000136,2]
[361609139,1747637439366,-302.11776828,0.000136,2]
[361609141,1747637439376,-4781.28139381,0.00013605,2]
[361609143,1747637439385,-151.0,0.00013614,2]
[361609145,1747637439395,-155.78518109,0.00013614,2]
[361609147,1747637439404,-668.65185757,0.00013614,2]
[361609149,1747637439414,-4781.28139381,0.00013618,2]
[361609151,1747637439423,-13607.47509772,0.00013622,2]
[361609153,1747637439434,-1571.50030743,0.00013622,2]
[361609155,1747637439444,-2334.818276,0.00013622,2]
[361609158,1747637439455,-910.74869747,0.00013622,2]
[361609160,1747637439466,-506.5344105,0.00013622,2]
[361609242,1747637440192,-38277.00661088,0.00013622,2]
[361609244,1747637440202,-4781.28139381,0.00013631,2]
[361609246,1747637440212,-636.30015965,0.00013634,2]
[361609248,1747637440224,-4781.28139381,0.00013644,2]
[361609250,1747637440233,-4781.28139381,0.00013656,2]
[361609252,1747637440243,-3026.67144479,0.0001366,2]
[361609254,1747637440252,-4781.28139381,0.00013669,2]
[361609256,1747637440262,-619.553045,0.00013673,2]
[361609258,1747637440271,-500.0,0.00013673,2]
[361609260,1747637440281,-155.71211763,0.00013673,2]
[361609262,1747637440290,-500.0,0.00013673,2]
[361609264,1747637440299,-500.0,0.00013673,2]
[361609266,1747637440310,-501.6482699,0.00013673,2]
[361609267,1747637440319,-500.64792482,0.00013673,2]
[361609269,1747637440329,-636.9816312,0.00013673,2]
[361609271,1747637440338,-500.59978625,0.00013673,2]
[361609273,1747637440348,-208.31256447,0.00013673,2]
[361609275,1747637440357,-500.520092,0.00013673,2]
[361609277,1747637440367,-500.0,0.00013673,2]
[361609280,1747637440377,-500.0,0.00013673,2]
[361609282,1747637440387,-500.0,0.00013673,2]
[361609284,1747637440397,-500.0,0.00013673,2]
[361609286,1747637440406,-158.59,0.00013681,2]
[361609288,1747637440416,-678.81020733,0.00013681,2]
[361609289,1747637440425,-4781.28139381,0.00013682,2]
[361609292,1747637440436,-351.26165927,0.00013685,2]
[361609293,1747637440445,-174.71619413,0.00013686,2]
[361609296,1747637440455,-678.81020733,0.00013688,2]
[361609298,1747637440464,-418.68108008,0.00013691,2]
[361609299,1747637440476,-1292065.79193905,0.00013691,2]
[361609302,1747637440485,-77441.87609344,0.00013692,2]
[361609810,1747637446861,-268.7179,0.00013573,2]
[361609811,1747637446871,-1811.72718846,0.00013692,2]
[361609813,1747637446961,-1993.23097681,0.00013692,2]
[361609814,1747637447111,-10728.79825984,0.00013692,2]
[361609815,1747637447123,-10230.0,0.00013692,2]
[361609816,1747637447135,-672.0,0.00013692,2]
[361609854,1747637448347,-100729.74824237,0.00013692,2]
[361609855,1747637448819,-256.96,0.00013692,2]
[361609856,1747637448844,-691.55325808,0.00013692,2]
[361609861,1747637448888,-578.92499496,0.00013692,2]
[361609863,1747637448901,-1242.76483612,0.00013692,2]
[361609865,1747637448914,-5125.0,0.00013692,2]
[361609869,1747637448946,-20436.0,0.00013692,2]
[361609871,1747637448958,-6536.940145,0.00013692,2]
[361609876,1747637449206,-115000.0,0.00013692,2]
[361609877,1747637451566,150.0,0.00012773,7]
[361609878,1747637493690,50000.0,0.00027397,120]
[361609879,1747637578930,1275.0,0.00027397,120]
[361609880,1747637595723,150.051915,0.000273,120]
[361609881,1747637597007,150.051915,0.000273,120]
[361609882,1747637597785,150.051915,0.000273,120]
[361609883,1747637598588,150.051915,0.000273,120]
[361609884,1747637599352,150.051915,0.000273,120]
[361609885,1747637600108,150.051915,0.000273,120]
[361609886,1747637600817,150.051915,0.000273,120]
[361609887,1747637601540,150.051915,0.000273,120]
[361609888,1747637602241,150.051915,0.000273,120]
[361609889,1747637602859,150.051915,0.000273,120]
[361609890,1747637616563,-6355.0,0.00012522,2]
[361609891,1747637616588,-865.2306,0.00012522,2]
[361609892,1747637616614,-539.4,0.00012753,2]
[361609893,1747637616641,-1240.3694,0.00012763,2]
[361609897,1747637811176,2500.0,0.00027397,120]
[361609898,1747637885505,200.0,0.000137,5]
[361609899,1747637887646,200.0,0.000138,5]
[361609900,1747637889724,1033.0,0.000139,5]
[361609901,1747638077480,-154.57432117,0.00012419,2]
[361609902,1747638100787,-152.0,0.00012407,2]
[361609903,1747638166111,-180.52,0.00012407,2]
[361609904,1747638166136,-17.12149382,0.00012419,2]
[361609905,1747638166161,-3560.42938239,0.000125,2]
[361609906,1747638166186,-200.0,0.00012519,2]
[361609907,1747638166212,-200.0,0.00012538,2]
[361609908,1747638166238,-200.0,0.00012638,2]
[361609909,1747638166264,-1000.0,0.00012674,2]
[361609910,1747638166289,-834.11,0.00012721,2]
[361609911,1747638166313,-168.04,0.00012722,2]
[361609912,1747638166338,-126.2106,0.00012763,2]
[361609913,1747638166367,-1200.0,0.00012899,2]
[361609914,1747638166396,-1828.55153709,0.000129,2]
[361609915,1747638166422,-204.0,0.00012926,2]
[361609916,1747638166448,-281.0169867,0.00012967,2]
[361609917,1747638211268,597.96,0.00010546,2]
[361609918,1747638267658,5000.0,0.0002,30]
[361609919,1747638302768,2000.0,0.0002,30]
[361609921,1747638376446,302.3,0.00027397,120]
[361609922,1747638439126,-306.58,0.0001247,2]
[361609923,1747638439148,-535.32,0.0001263,2]
[361609924,1747638439170,-597.96,0.0001281,2]
[361609925,1747638439192,-2000.0,0.00012863,2]
[361609926,1747638439212,-200.0,0.00012863,2]
[361609927,1747638439234,-170.44,0.00012987,2]
[361609928,1747638439255,-200.0,0.00013,4]
[361609929,1747638439277,-207.4,0.00013093,2]
[361609930,1747638439298,-500.0,0.000131,4]
[361609931,1747638439319,-265.02668884,0.00013192,2]
[361609932,1747638439340,-800.0,0.000132,4]
[361609933,1747638439362,-1200.0,0.00013297,2]
[361609934,1747638439383,-150.0,0.00013298,2]
[361609935,1747638439409,-150.0,0.00013298,2]
[361609936,1747638439430,-150.0,0.00013298,2]